bitfinex/quotes_SOLUSD_20250617
["timestamp","ask_amount","ask_price","bid_price","bid_amount"]
[1750157015676,5.42638497,150.81,150.8,6.24]
[1750157017193,12.05724499,150.81,150.8,6.24]
[1750157018913,6.63086002,150.81,150.8,6.24]
[1750157019117,12.05724499,150.81,150.8,6.24]
[1750157019404,6.63086002,150.81,150.8,6.24]
[1750157019585,12.05724499,150.81,150.8,6.24]
[1750157019913,28.63439504,150.81,150.74,6.24]
[1750157020089,5.42638497,150.77,150.74,6.24]
[1750157020282,6.53476174,150.8,150.74,6.24]
[1750157020477,5.42638497,150.77,150.74,6.24]
[1750157020710,5.42638497,150.75,150.74,6.24]
[1750157021311,12.05988414,150.75,150.74,6.24]
[1750157021686,33.5364938,150.75,150.69,6.24]
[1750157021889,5.42638497,150.72,150.69,6.24]
[1750157022211,5.42638497,150.73,150.69,6.24]
[1750157023895,6.63452871,150.73,150.69,11.66638497]
[1750157024114,12.06091368,150.73,150.69,11.66638497]
[1750157024612,6.63452871,150.73,150.69,11.66638497]
[1750157025494,12.06091368,150.73,150.69,11.66638497]
[1750157025802,12.06091368,150.73,150.69,6.24]
[1750157026004,5.42638497,150.7,150.69,6.24]
[1750157027221,5.42638497,150.7,150.64,6.24]
[1750157027385,5.42638497,150.68,150.64,6.24]
[1750157027715,12.06319781,150.68,150.64,11.66638497]
[1750157028238,12.06319781,150.68,150.64,6.24]
[1750157028239,5.42638497,150.67,150.64,6.24]
[1750157029122,5.42638497,150.66,150.64,6.24]
[1750157029316,6.63681284,150.68,150.64,6.24]
[1750157029520,12.06404801,150.66,150.64,6.24]
[1750157029718,6.63766304,150.66,150.64,6.24]
[1750157030316,6.63622903,150.69,150.65,5.42638497]
[1750157030506,31.42638497,150.7,150.65,5.42638497]
[1750157030707,5.42638497,150.69,150.64,11.66638497]
[1750157031103,49.22508263,150.7,150.64,11.66638497]
[1750157031309,5.42638497,150.69,150.64,11.66638497]
[1750157031736,6.63658083,150.68,150.64,11.66638497]
[1750157032744,12.0629658,150.68,150.64,11.66638497]
[1750157034844,6.63658083,150.68,150.64,11.66638497]
[1750157035135,12.0629658,150.68,150.64,11.66638497]
[1750157035542,12.0629658,150.68,150.64,6.24]
[1750157035739,12.0629658,150.68,150.64,11.66638497]
[1750157036054,5.42638497,150.65,150.64,6.24]
[1750157036725,5.42638497,150.65,150.59,6.24]
[1750157036924,6.0137,150.66,150.59,6.24]
[1750157037146,5.42638497,150.63,150.59,6.24]
[1750157037447,5.42638497,150.63,150.59,11.66638497]
[1750157037833,12.06560914,150.63,150.59,6.24]
[1750157038031,12.06560914,150.63,150.59,11.66638497]
[1750157038438,6.63790242,150.65,150.62,5.42638497]
[1750157038640,5.42638497,150.67,150.63,5.42638497]
[1750157038949,1.594,150.68,150.62,5.42638497]
[1750157039131,1.594,150.68,150.6,44.64964886]
[1750157039132,6.4598,150.7,150.64,5.42638497]
[1750157039330,5.42638497,150.69,150.64,5.42638497]
[1750157039926,12.06279527,150.69,150.64,5.42638497]
[1750157040335,6.6364103,150.69,150.64,6.63832033]
[1750157040531,12.06279527,150.69,150.65,5.42638497]
[1750157040731,12.06279527,150.69,150.6,44.64964886]
[1750157040732,32.6364103,150.69,150.6,44.64964886]
[1750157040925,32.6364103,150.69,150.6,31.42638497]
[1750157041125,55.62166135,150.69,150.6,31.42638497]
[1750157041353,5.42638497,150.64,150.6,26.0]
[1750157041649,5.42638497,150.63,150.6,26.0]
[1750157041945,12.06532122,150.63,150.59,6.24]
[1750157042124,5.42638497,150.63,150.59,18.30683331]
[1750157042328,12.06443271,150.65,150.6,5.42638497]
[1750157042540,12.06443271,150.65,150.61,5.42638497]
[1750157042746,32.3949,150.69,150.62,5.42638497]
[1750157043033,32.3949,150.69,150.59,12.88044834]
[1750157043034,6.63658083,150.68,150.63,5.42638497]
[1750157043237,6.63623628,150.69,150.65,5.42638497]
[1750157043471,12.06262125,150.69,150.65,5.42638497]
[1750157043957,5.42638497,150.69,150.65,12.0641902]
[1750157044133,12.06263675,150.69,150.65,5.42638497]
[1750157044755,5.42638497,150.69,150.65,12.06423777]
[1750157044940,6.6358211,150.7,150.66,8.14290199]
[1750157045250,6.6358211,150.7,150.65,14.78075479]
[1750157045251,14.77872309,150.7,150.65,14.78075479]
[1750157045461,8.14290199,150.69,150.65,8.14290199]
[1750157045642,6.6358211,150.7,150.65,8.14290199]
[1750157045843,8.14290199,150.69,150.65,8.14290199]
[1750157046349,14.77872309,150.7,150.65,8.14290199]
[1750157047133,26.0,150.72,150.68,8.14290199]
[1750157047353,150.683,150.76,150.67,8.14290199]
[1750157047557,8.14290199,150.71,150.67,8.14290199]
[1750157047856,26.0,150.74,150.66,6.24]
[1750157047857,26.0,150.73,150.68,8.14290199]
[1750157048044,8.14290199,150.72,150.68,8.14290199]
[1750157049236,8.14290199,150.72,150.66,12.87737824]
[1750157049455,8.14290199,150.71,150.66,21.02028023]
[1750157049767,32.63438743,150.73,150.67,8.14290199]
[1750157049768,8.14290199,150.72,150.67,8.14290199]
[1750157049935,8.14290199,150.72,150.66,12.87737824]
[1750157050266,14.7781358,150.72,150.67,8.14290199]
[1750157050761,8.14290199,150.71,150.67,8.14290199]
[1750157051240,14.77829124,150.71,150.66,12.87737824]
[1750157051434,14.77829124,150.71,150.66,6.24]
[1750157051435,8.14290199,150.7,150.66,6.24]
[1750157051648,8.14290199,150.7,150.66,21.02030858]
[1750157052751,14.77772152,150.72,150.67,8.14290199]
[1750157052949,14.77737945,150.73,150.69,8.14290199]
[1750157054350,8.14290199,150.72,150.68,8.14290199]
[1750157054673,8.14290199,150.71,150.67,8.14290199]
[1750157054969,6.63447746,150.73,150.67,8.14290199]
[1750157055140,8.14290199,150.72,150.68,8.14290199]
[1750157055340,6.63447746,150.73,150.68,8.14290199]
[1750157055552,8.14290199,150.72,150.68,8.14290199]
[1750157055760,14.77781645,150.72,150.68,8.14290199]
[1750157055962,8.14290199,150.72,150.68,8.14290199]
[1750157056463,14.77774289,150.72,150.68,8.14290199]
[1750157056643,8.14290199,150.71,150.67,8.14290199]
[1750157057458,6.6348409,150.72,150.67,14.77988431]
[1750157057650,14.77774289,150.72,150.67,14.77988431]
[1750157058252,8.14290199,150.71,150.67,14.77988431]
[1750157059275,6.63437935,150.73,150.67,14.77988431]
[1750157059574,8.14290199,150.71,150.67,14.77988431]
[1750157059777,8.14290199,150.72,150.67,14.77988431]
[1750157059948,8.14290199,150.72,150.68,8.14290199]
[1750157060475,14.77773903,150.72,150.68,8.14290199]
[1750157060671,8.14290199,150.72,150.68,8.14290199]
[1750157061176,8.14290199,150.69,150.66,6.24]
[1750157061682,8.14290199,150.7,150.66,6.24]
[1750157061848,8.14290199,150.69,150.66,6.24]
[1750157062683,8.14290199,150.67,150.59,1.5738]
[1750157062970,8.14290199,150.64,150.61,6.24]
[1750157063184,30.87348925,150.68,150.61,6.24]
[1750157063376,8.14290199,150.65,150.61,14.38290199]
[1750157064075,8.14290199,150.65,150.61,12.87965819]
[1750157064579,8.14290199,150.65,150.61,21.02256018]
[1750157065389,14.78098594,150.65,150.61,6.24]
[1750157065565,8.14290199,150.64,150.61,6.24]
[1750157066669,14.78098594,150.65,150.61,6.24]
[1750157066869,12.07004867,150.65,150.61,6.24]
[1750157067188,5.43196472,150.65,150.61,18.31148968]
[1750157068687,36.30545397,150.67,150.63,5.43196472]
[1750157068884,36.30545397,150.67,150.62,5.43196472]
[1750157068885,42.94254685,150.67,150.62,5.43196472]
[1750157069126,5.43196472,150.65,150.61,18.31148968]
[1750157069675,5.43196472,150.66,150.61,18.31148968]
[1750157069994,12.06943738,150.66,150.61,18.31148968]
[1750157070782,5.43196472,150.66,150.62,5.43196472]
[1750157071388,6.63744334,150.67,150.63,5.43196472]
[1750157071389,10.32474785,150.67,150.63,5.43196472]
[1750157071568,10.32474785,150.67,150.62,5.43196472]
[1750157071762,10.32474785,150.67,150.62,12.07099036]
[1750157071763,16.961776,150.67,150.62,12.07099036]
[1750157072578,16.961776,150.67,150.62,5.43196472]
[1750157072579,5.43196472,150.66,150.62,5.43196472]
[1750157072906,5.43196472,150.66,150.61,18.31145962]
[1750157073891,12.06950723,150.66,150.61,18.31145962]
[1750157075083,5.43196472,150.66,150.61,18.31145962]
[1750157075292,5.43196472,150.66,150.62,5.43196472]
[1750157076623,6.63721818,150.67,150.62,5.43196472]
[1750157076795,5.43196472,150.66,150.62,5.43196472]
[1750157077098,12.06946295,150.66,150.61,12.8794949]
[1750157077299,12.06946295,150.66,150.62,5.43196472]
[1750157077976,5.43196472,150.66,150.62,5.43196472]
[1750157078284,6.63716308,150.67,150.62,5.43196472]
[1750157078487,5.43196472,150.66,150.62,5.43196472]
[1750157079089,12.0691278,150.67,150.62,6.63910679]
[1750157079296,12.0691278,150.67,150.63,5.43196472]
[1750157079505,5.43196472,150.66,150.62,12.07107151]
[1750157080201,6.63716308,150.67,150.62,12.07107151]
[1750157080507,5.43196472,150.66,150.62,12.07107151]
[1750157081203,6.63716308,150.67,150.62,12.07107151]
[1750157081409,5.43196472,150.66,150.62,12.07107151]
[1750157082071,5.43196472,150.65,150.61,11.67196472]
[1750157083473,5.43196472,150.65,150.61,6.24]
[1750157083676,5.43196472,150.65,150.61,11.67196472]
[1750157083991,6.6370213,150.67,150.61,6.24]
[1750157084199,5.43196472,150.65,150.61,18.31148673]
[1750157084881,5.43196472,150.66,150.62,5.43196472]
[1750157085701,12.0697429,150.66,150.61,12.87952201]
[1750157085880,6.63777818,150.66,150.61,18.31148673]
[1750157086086,5.43196472,150.65,150.61,18.31148673]
[1750157086288,30.89342719,150.68,150.61,18.31148673]
[1750157086289,4.89342719,150.68,150.63,5.43196472]
[1750157086590,11.92829191,150.7,150.66,5.43196472]
[1750157086970,1.6029,150.7,150.66,5.43196472]
[1750157087505,13.6708272,150.7,150.66,5.43196472]
[1750157087674,18.56425439,150.7,150.66,5.43196472]
[1750157087874,5.43196472,150.67,150.61,8.09262314]
[1750157088077,5.43196472,150.65,150.61,18.311451]
[1750157088298,5.43196472,150.64,150.61,6.24]
[1750157088679,5.43196472,150.63,150.61,6.24]
[1750157090011,6.63871328,150.64,150.61,6.24]
[1750157090195,5.43196472,150.64,150.61,6.24]
[1750157090395,5.43196472,150.63,150.61,6.24]
[1750157090580,5.43196472,150.64,150.61,6.24]
[1750157090780,6.63805078,150.65,150.61,6.24]
[1750157090980,5.43196472,150.64,150.61,6.24]
[1750157091175,6.63805078,150.65,150.61,6.24]
[1750157091484,5.43196472,150.64,150.61,6.24]
[1750157093307,6.63835371,150.64,150.61,6.24]
[1750157093602,12.07031843,150.64,150.61,6.24]
[1750157093988,6.63808796,150.65,150.61,6.24]
[1750157094299,5.43196472,150.64,150.61,6.24]
[1750157094809,5.43196472,150.63,150.61,6.24]
[1750157095116,6.63808796,150.65,150.56,26.0]
[1750157095117,12.07118925,150.62,150.56,26.0]
[1750157095334,12.07118925,150.62,150.56,11.65196472]
[1750157095335,5.43196472,150.6,150.56,11.65196472]
[1750157095536,5.43196472,150.59,150.56,6.22]
[1750157095713,5.43196472,150.58,150.56,6.22]
[1750157095889,5.43196472,150.59,150.56,6.22]
[1750157098312,12.07253549,150.59,150.56,6.22]
[1750157098523,5.43196472,150.58,150.56,6.22]
[1750157099225,6.64057077,150.59,150.56,6.22]
[1750157099412,5.43196472,150.58,150.56,6.22]
[1750157099726,12.07253549,150.59,150.56,6.22]
[1750157100888,5.43196472,150.59,150.56,6.22]
[1750157102110,6.1953,150.66,150.57,18.64964886]
[1750157102416,8.14648775,150.65,150.62,5.43196472]
[1750157102603,8.14648775,150.65,150.59,0.28432314]
[1750157102604,1.5084,150.65,150.59,0.28432314]
[1750157102795,1.5084,150.65,150.62,5.43196472]
[1750157103229,1.5084,150.65,150.59,0.28432314]
[1750157103230,4.89282692,150.7,150.64,10.86392944]
[1750157103433,4.89282692,150.7,150.68,5.43196472]
[1750157103621,44.61393551,150.72,150.68,5.43196472]
[1750157103794,6.54712692,150.72,150.68,5.43196472]
[1750157104105,1.6543,150.72,150.69,5.43196472]
[1750157104309,6.0369,150.73,150.7,5.43196472]
[1750157104517,5.43196472,150.74,150.69,5.43196472]
[1750157104993,31.43196472,150.74,150.69,5.43196472]
[1750157105195,5.43196472,150.74,150.7,5.43196472]
[1750157105499,38.06563139,150.75,150.71,5.43196472]
[1750157105692,5.43196472,150.74,150.7,5.43196472]
[1750157106392,31.43196472,150.74,150.7,5.43196472]
[1750157106652,31.43196472,150.74,150.7,11.65196472]
[1750157107125,31.43196472,150.74,150.7,6.22]
[1750157107443,38.06590469,150.74,150.7,11.65196472]
[1750157108020,26.0,150.74,150.71,5.43196472]
[1750157108592,6.51403687,150.76,150.7,12.85567941]
[1750157108593,13.68349576,150.76,150.72,5.43196472]
[1750157108909,18.23049424,150.77,150.73,5.43196472]
[1750157110294,18.23049424,150.77,150.72,5.43196472]
[1750157110498,5.43196472,150.75,150.7,6.22]
[1750157110810,5.43196472,150.75,150.71,5.43196472]
[1750157111017,5.43196472,150.76,150.72,5.43196472]
[1750157112098,12.06518121,150.76,150.72,5.43196472]
[1750157113616,6.63271713,150.77,150.74,5.43196472]
[1750157114104,1.6233,150.8,150.75,5.43196472]
[1750157114415,12.647844,150.81,150.73,18.933972]
[1750157114416,6.0131,150.81,150.73,18.933972]
[1750157114616,18.07604447,150.81,150.77,5.43196472]
[1750157115119,6.63097975,150.81,150.78,5.43196472]
[1750157115323,6.63097975,150.81,150.77,5.43196472]
[1750157115706,12.06294447,150.81,150.77,5.43196472]
[1750157115917,26.0,150.82,150.76,6.63297229]
[1750157116103,26.0,150.82,150.79,5.43196472]
[1750157116631,1.5208,150.84,150.8,5.43196472]
[1750157116818,1.5208,150.84,150.8,8.12703833]
[1750157116819,9.64783833,150.84,150.8,8.12703833]
[1750157117331,1.5208,150.84,150.79,8.12703833]
[1750157117622,16.27747071,150.84,150.8,8.12703833]
[1750157117922,6.62963238,150.84,150.8,8.12703833]
[1750157118118,14.75667071,150.84,150.8,8.12703833]
[1750157119131,14.75667071,150.84,150.77,6.22]
[1750157119132,8.12703833,150.83,150.78,8.12703833]
[1750157119327,14.75667071,150.84,150.8,8.12703833]
[1750157119523,40.75629111,150.85,150.81,8.12703833]
[1750157120001,40.75629111,150.85,150.77,12.85250076]
[1750157120002,14.7552613,150.87,150.8,26.0]
[1750157120323,23.1987804,150.87,150.77,12.85250076]
[1750157120526,6.62910175,150.85,150.78,6.22]
[1750157120823,8.12703833,150.82,150.78,20.97921094]
[1750157121010,8.12703833,150.82,150.78,14.34703833]
[1750157121328,8.12703833,150.83,150.78,14.34703833]
[1750157121504,8.12703833,150.83,150.79,8.12703833]
[1750157121705,8.12703833,150.84,150.8,8.12703833]
[1750157122517,6.62910175,150.85,150.8,8.12703833]
[1750157122717,14.75699796,150.84,150.79,8.12703833]
[1750157123508,8.12703833,150.83,150.79,8.12703833]
[1750157124601,8.12703833,150.83,150.78,6.22]
[1750157124602,8.12703833,150.82,150.78,6.22]
[1750157124803,8.12703833,150.83,150.78,20.97919681]
[1750157125031,8.12703833,150.84,150.79,8.12703833]
[1750157126024,8.12703833,150.84,150.79,14.75846905]
[1750157126425,8.12703833,150.84,150.8,8.12703833]
[1750157126728,6.62937025,150.85,150.8,8.12703833]
[1750157126926,8.12703833,150.84,150.8,8.12703833]
[1750157127118,8.12703833,150.83,150.79,14.75846905]
[1750157127322,8.12703833,150.84,150.8,8.12703833]
[1750157128132,8.12703833,150.84,150.79,6.63143072]
[1750157128133,8.12703833,150.83,150.79,14.75846905]
[1750157129436,8.12703833,150.83,150.78,12.85206234]
[1750157129629,8.12703833,150.79,150.78,6.22]
[1750157131640,8.21467987,150.81,150.78,6.22]
[1750157131831,8.12703833,150.79,150.78,6.22]
[1750157132245,8.12703833,150.8,150.78,6.22]
[1750157133222,8.21467987,150.81,150.78,6.22]
[1750157133424,14.75833838,150.8,150.78,6.22]
[1750157133625,8.12703833,150.79,150.78,6.22]
[1750157135335,6.63217933,150.78,150.73,6.2]
[1750157135527,8.12703833,150.75,150.73,6.2]
[1750157136833,5.42436832,150.75,150.73,6.2]
[1750157137027,5.42436832,150.74,150.73,6.2]
[1750157137853,12.05830755,150.74,150.73,6.2]
[1750157138657,5.42436832,150.74,150.73,6.2]
[1750157138844,12.05830755,150.74,150.73,6.2]
[1750157140330,12.05830755,150.74,150.69,41.8796634]
[1750157140643,5.42436832,150.7,150.69,41.8796634]
[1750157140841,5.42436832,150.7,150.68,6.2]
[1750157142257,52.802872,150.76,150.68,12.8365792]
[1750157142258,6.63349917,150.75,150.68,12.8365792]
[1750157142436,5.42436832,150.72,150.68,11.62436832]
[1750157142631,5.42436832,150.71,150.68,6.2]
[1750157143529,5.42436832,150.7,150.68,6.2]
[1750157144127,6.63523343,150.72,150.68,6.2]
[1750157144352,5.42436832,150.71,150.68,6.2]
[1750157147067,5.42436832,150.7,150.68,6.2]
[1750157147360,5.42436832,150.69,150.68,6.2]
[1750157148257,12.06050874,150.69,150.68,6.2]
[1750157148868,5.42436832,150.69,150.68,6.2]
[1750157149176,26.0,150.71,150.68,6.2]
[1750157149347,5.42436832,150.73,150.69,5.42436832]
[1750157149972,31.42436832,150.73,150.69,5.42436832]
[1750157150640,38.05876066,150.73,150.69,5.42436832]
[1750157151469,32.63439234,150.73,150.69,5.42436832]
[1750157151657,38.05876066,150.73,150.69,5.42436832]
[1750157152247,32.63439234,150.73,150.69,5.42436832]
[1750157152448,38.05876066,150.73,150.68,18.26085046]
[1750157152768,5.42436832,150.72,150.68,11.62436832]
[1750157152948,5.42436832,150.7,150.68,6.2]
[1750157153148,5.42436832,150.7,150.63,26.0]
[1750157153149,5.42436832,150.69,150.62,6.63915819]
[1750157153456,5.42436832,150.65,150.63,6.2]
[1750157153653,5.42436832,150.64,150.63,6.2]
[1750157154676,12.06271138,150.64,150.63,6.2]
[1750157156992,5.42436832,150.64,150.63,6.2]
[1750157157755,12.06271138,150.64,150.63,6.2]
[1750157159405,12.06271138,150.64,150.58,25.29046389]
[1750157159406,12.06271138,150.64,150.58,6.2]
[1750157159690,5.42436832,150.61,150.58,6.2]
[1750157160268,5.42436832,150.6,150.58,6.2]
[1750157160784,1.5349,150.64,150.58,12.84083098]
[1750157160983,38.58783986,150.68,150.63,5.42436832]
[1750157160984,6.6370213,150.67,150.63,5.42436832]
[1750157161161,26.57491309,150.68,150.64,5.42436832]
[1750157161364,26.57491309,150.68,150.6,8.0004]
[1750157161573,12.06109041,150.68,150.64,5.42436832]
[1750157162077,6.63672209,150.68,150.61,18.933972]
[1750157162261,6.63672209,150.68,150.65,5.42436832]
[1750157162875,40.77966556,150.69,150.65,8.14335444]
[1750157163071,14.77966556,150.69,150.65,8.14335444]
[1750157163661,8.14335444,150.67,150.63,8.14335444]
[1750157163859,6.63631112,150.69,150.63,8.14335444]
[1750157164058,8.14335444,150.66,150.62,8.14335444]
[1750157164297,6.63756623,150.66,150.62,8.14335444]
[1750157164593,14.78092067,150.66,150.62,8.14335444]
[1750157165288,14.78092067,150.66,150.6,14.64008506]
[1750157165289,8.14335444,150.65,150.6,1.5103]
[1750157165480,8.14335444,150.65,150.61,14.34335444]
[1750157166006,8.14335444,150.62,150.61,6.2]
[1750157166306,27.5618,150.65,150.61,6.2]
[1750157166490,42.34306149,150.65,150.61,6.2]
[1750157166861,8.14335444,150.64,150.61,6.2]
[1750157167073,8.14335444,150.63,150.61,6.2]
[1750157167593,34.19970705,150.65,150.61,6.2]
[1750157167791,8.14335444,150.63,150.61,6.2]
[1750157168485,8.14335444,150.62,150.61,6.2]
[1750157169887,14.78252833,150.63,150.61,6.2]
[1750157170086,6.63917389,150.63,150.56,6.2]
[1750157170278,8.14335444,150.6,150.56,14.34335444]
[1750157170584,44.15666388,150.65,150.58,8.14335444]
[1750157170585,8.14335444,150.62,150.58,8.14335444]
[1750157170892,6.63834306,150.64,150.57,6.64142923]
[1750157171086,6.63834306,150.64,150.58,8.14335444]
[1750157171261,8.14335444,150.62,150.58,8.14335444]
[1750157171465,14.78257946,150.62,150.58,8.14335444]
[1750157172290,8.14335444,150.61,150.57,6.64142923]
[1750157172495,8.14335444,150.61,150.57,14.78478367]
[1750157173170,8.14335444,150.62,150.57,6.64142923]
[1750157173493,8.14335444,150.62,150.58,8.14335444]
[1750157173966,6.63834306,150.64,150.59,8.14335444]
[1750157173967,8.14335444,150.63,150.59,8.14335444]
[1750157174169,6.63834306,150.64,150.57,6.64142923]
[1750157174170,8.14335444,150.62,150.58,8.14335444]
[1750157174576,8.14335444,150.62,150.57,6.64142923]
[1750157174776,6.63834306,150.64,150.57,6.64142923]
[1750157174972,6.63834306,150.64,150.58,8.14335444]
[1750157175175,42.34310366,150.65,150.6,8.14335444]
[1750157175398,6.63794922,150.65,150.61,8.14335444]
[1750157175597,8.14335444,150.64,150.6,8.14335444]
[1750157175984,8.14335444,150.64,150.56,6.34216157]
[1750157175985,8.14335444,150.63,150.56,6.34216157]
[1750157176198,23.23270527,150.65,150.56,6.34216157]
[1750157176386,23.23270527,150.65,150.56,6.2]
[1750157176591,14.78130366,150.65,150.57,0.14216157]
[1750157176896,6.63794922,150.65,150.57,18.933972]
[1750157177070,14.78130366,150.65,150.61,8.14335444]
[1750157177270,6.63794922,150.65,150.61,8.14335444]
[1750157177474,14.78130366,150.65,150.61,8.14335444]
[1750157177675,8.14335444,150.63,150.59,8.14335444]
[1750157177879,8.14335444,150.63,150.59,14.78386788]
[1750157178171,8.14335444,150.64,150.59,8.14335444]
[1750157178592,6.63794922,150.65,150.6,8.14335444]
[1750157178787,40.78096951,150.66,150.62,8.14335444]
[1750157179301,8.14335444,150.65,150.58,1.5185]
[1750157179601,8.14335444,150.65,150.6,8.14335444]
[1750157179770,8.14335444,150.64,150.58,8.15948817]
[1750157179967,8.14335444,150.64,150.6,8.14335444]
[1750157180171,14.78160952,150.65,150.58,8.15948817]
[1750157180889,14.78173544,150.64,150.6,8.14335444]
[1750157181201,6.638381,150.64,150.6,8.14335444]
[1750157181406,6.638381,150.64,150.59,6.64046734]
[1750157181579,6.638381,150.64,150.6,8.14335444]
[1750157181787,8.14335444,150.64,150.6,8.14335444]
[1750157182098,8.14335444,150.65,150.61,8.14335444]
[1750157182300,8.14335444,150.65,150.6,6.63989051]
[1750157182674,8.14335444,150.65,150.61,8.14335444]
[1750157183091,32.63751603,150.66,150.58,1.5185]
[1750157183092,8.14335444,150.64,150.58,8.15933431]
[1750157183284,8.14335444,150.64,150.6,8.14335444]
[1750157183899,14.78168684,150.65,150.6,8.14335444]
[1750157184211,8.14335444,150.64,150.6,8.14335444]
[1750157184903,6.6383324,150.65,150.59,6.64035667]
[1750157185108,5.43215607,150.63,150.59,12.07251274]
[1750157185408,6.6383324,150.65,150.57,6.64115034]
[1750157185615,32.63751939,150.66,150.61,5.43215607]
[1750157185906,21.47914764,150.68,150.63,5.43215607]
[1750157185907,16.95696617,150.67,150.63,5.43215607]
[1750157186088,16.95696617,150.67,150.62,5.43215607]
[1750157186612,5.43215607,150.66,150.62,5.43215607]
[1750157187089,12.06972549,150.66,150.62,5.43215607]
[1750157187292,6.63756942,150.66,150.62,5.43215607]
[1750157187597,12.06972549,150.66,150.62,5.43215607]
[1750157188399,6.6370213,150.67,150.62,5.43215607]
[1750157188610,5.43215607,150.66,150.62,5.43215607]
[1750157188813,12.06917737,150.67,150.62,5.43215607]
[1750157189010,37.52613355,150.68,150.64,5.43215607]
[1750157189307,38.06884114,150.68,150.64,5.43215607]
[1750157190295,11.5256858,150.69,150.65,5.43215607]
[1750157190524,6.63623732,150.69,150.63,12.87874917]
[1750157190830,6.63623732,150.69,150.65,5.43215607]
[1750157191314,37.52527139,150.7,150.65,5.43215607]
[1750157191519,38.06797898,150.7,150.65,5.43215607]
[1750157192018,5.43215607,150.69,150.65,5.43215607]
[1750157192321,32.63583665,150.7,150.64,6.63804044]
[1750157192617,5.43215607,150.69,150.65,5.43215607]
[1750157194117,12.06860526,150.69,150.65,5.43215607]
[1750157195028,12.06860526,150.69,150.64,5.43215607]
[1750157195206,16.95805374,150.69,150.64,5.43215607]
[1750157195915,16.95805374,150.69,150.65,5.43215607]
[1750157196097,5.43215607,150.68,150.63,6.24]
[1750157196302,5.43215607,150.68,150.64,5.43215607]
[1750157196705,4.88944848,150.68,150.64,5.43215607]
[1750157196914,4.88944848,150.68,150.63,12.87870771]
[1750157197223,16.95805374,150.69,150.64,5.43215607]
[1750157197597,4.88944848,150.68,150.64,5.43215607]
[1750157197797,4.88944848,150.68,150.65,5.43215607]
[1750157198222,11.54021804,150.69,150.65,5.43215607]
[1750157198913,5.43215607,150.71,150.67,5.43215607]
[1750157199218,4.90508317,150.71,150.67,5.43215607]
[1750157199722,4.90508317,150.71,150.69,5.43215607]
[1750157199921,11.53994258,150.72,150.67,6.6370213]
[1750157200124,11.53994258,150.72,150.69,5.43215607]
[1750157200307,37.5396446,150.73,150.69,5.43215607]
[1750157200508,42.97180067,150.73,150.69,5.43215607]
[1750157200709,12.06565524,150.75,150.7,5.43215607]
[1750157200928,12.06565524,150.75,150.67,8.2415213]
[1750157200929,4.90277237,150.74,150.71,5.43215607]
[1750157201229,5.43215607,150.74,150.7,6.24]
[1750157201401,5.43215607,150.72,150.7,6.24]
[1750157202024,12.06735354,150.72,150.7,6.24]
[1750157202721,6.63519747,150.72,150.7,6.24]
[1750157203029,12.06666855,150.73,150.7,6.24]
[1750157203912,21.48652029,150.75,150.7,6.24]
[1750157203913,6.63408158,150.74,150.7,11.67215607]
[1750157204118,6.63408158,150.74,150.71,5.43215607]
[1750157204613,6.63408158,150.74,150.7,11.67215607]
[1750157204818,6.63367831,150.75,150.7,12.87549391]
[1750157205023,6.63367831,150.75,150.71,5.43215607]
[1750157205222,6.63367831,150.75,150.72,5.43215607]
[1750157205405,12.06525909,150.76,150.72,5.43215607]
[1750157205926,6.63310302,150.76,150.72,5.43215607]
[1750157206132,12.06525909,150.76,150.72,5.43215607]
[1750157206339,6.63310302,150.76,150.72,5.43215607]
[1750157206511,12.06525909,150.76,150.72,5.43215607]
[1750157206708,6.63310302,150.76,150.72,5.43215607]
[1750157206933,30.90277237,150.77,150.74,5.43215607]
[1750157207134,5.43215607,150.78,150.71,6.63522714]
[1750157207311,5.43215607,150.78,150.74,5.43215607]
[1750157208113,12.06465325,150.78,150.74,5.43215607]
[1750157208545,6.63249718,150.78,150.75,5.43215607]
[1750157209131,12.06465325,150.78,150.74,5.43215607]
[1750157209336,12.06465325,150.78,150.72,5.43215607]
[1750157209337,5.43215607,150.77,150.72,5.43215607]
[1750157209730,5.43215607,150.77,150.73,5.43215607]
[1750157210026,6.63249718,150.78,150.71,6.63509021]
[1750157210027,12.06546457,150.76,150.72,5.43215607]
[1750157210817,5.43215607,150.77,150.73,5.43215607]
[1750157211921,6.63293328,150.77,150.74,5.43215607]
[1750157212237,12.06508935,150.77,150.73,5.43215607]
[1750157213250,6.6498,150.82,150.76,5.43215607]
[1750157213552,16.57587456,150.83,150.72,5.43215607]
[1750157213553,21.0924209,150.83,150.78,5.43215607]
[1750157213726,21.0924209,150.83,150.74,1.6223]
[1750157213727,5.43215607,150.83,150.79,5.43215607]